[Event "Late-Titled-Tuesday-Blitz-June-18-2024"]
[Site "Chess.com"]
[Date "2024.06.18"]
[Round "5"]
[White "Chopper1905"]
[Black "vi_pranav"]
[Result "1/2-1/2"]
[WhiteElo "2915"]
[BlackElo "3036"]
[TimeControl "180+1"]
[EndTime "14:59:41 PDT"]
[Termination "Game drawn - insufficient material"]

1. d4 {[%clk 0:03:00.9]} 1... Nf6 {[%clk 0:02:59.5]} 2. c4 {[%clk 0:03:00.6]}
2... e6 {[%clk 0:02:59.8]} 3. Nf3 {[%clk 0:03:00.6]} 3... b6 {[%clk 0:02:58.1]}
4. g3 {[%clk 0:03:00.6]} 4... Ba6 {[%clk 0:02:58.3]} 5. b3 {[%clk 0:03:00.6]}
5... d5 {[%clk 0:02:56.6]} 6. Bg2 {[%clk 0:02:59.1]} 6... dxc4 {[%clk
0:02:56.1]} 7. Ne5 {[%clk 0:02:57.1]} 7... Bb4+ {[%clk 0:02:56]} 8. Kf1 {[%clk
0:02:53.6]} 8... Bd6 {[%clk 0:02:55.7]} 9. Nxc4 {[%clk 0:02:51.8]} 9... Nd5
{[%clk 0:02:55.8]} 10. Bb2 {[%clk 0:02:43]} 10... Nc6 {[%clk 0:02:35.4]} 11.
Nbd2 {[%clk 0:02:29.7]} 11... O-O {[%clk 0:02:32.8]} 12. Rc1 {[%clk 0:02:18.1]}
12... Nde7 {[%clk 0:02:12.8]} 13. Bf3 {[%clk 0:01:42.5]} 13... Rc8 {[%clk
0:02:01.9]} 14. Kg2 {[%clk 0:01:42.3]} 14... Bb4 {[%clk 0:01:57.9]} 15. a3
{[%clk 0:01:28.8]} 15... Bxd2 {[%clk 0:01:49.8]} 16. Qxd2 {[%clk 0:01:29.7]}
16... Qd7 {[%clk 0:01:49.2]} 17. Rhd1 {[%clk 0:01:28.7]} 17... Rfd8 {[%clk
0:01:47.8]} 18. e4 {[%clk 0:01:26.1]} 18... Qe8 {[%clk 0:01:34.5]} 19. Qc3
{[%clk 0:01:25.2]} 19... f6 {[%clk 0:01:16.3]} 20. d5 {[%clk 0:01:21.5]} 20...
Bxc4 {[%clk 0:01:12.6]} 21. Qxc4 {[%clk 0:01:11.2]} 21... Na5 {[%clk 0:01:10]}
22. Qc2 {[%clk 0:00:55.7]} 22... exd5 {[%clk 0:01:08.5]} 23. exd5 {[%clk
0:00:56.6]} 23... Qd7 {[%clk 0:01:08.8]} 24. Be4 {[%clk 0:00:45.5]} 24... h6
{[%clk 0:00:55.6]} 25. Qe2 {[%clk 0:00:41]} 25... Nb7 {[%clk 0:00:52.8]} 26. Bb1
{[%clk 0:00:36.2]} 26... Nd6 {[%clk 0:00:49.5]} 27. Qd3 {[%clk 0:00:35.8]} 27...
Qf5 {[%clk 0:00:46.4]} 28. Qd4 {[%clk 0:00:17.4]} 28... Qh5 {[%clk 0:00:42.5]}
29. Qd3 {[%clk 0:00:09.8]} 29... Ndf5 {[%clk 0:00:34.7]} 30. Qe4 {[%clk
0:00:07.4]} 30... Kf8 {[%clk 0:00:34.4]} 31. Re1 {[%clk 0:00:06.3]} 31... Nxd5
{[%clk 0:00:20.7]} 32. Qxf5 {[%clk 0:00:05.2]} 32... Qxf5 {[%clk 0:00:15.4]} 33.
Bxf5 {[%clk 0:00:06.1]} 33... Rb8 {[%clk 0:00:16]} 34. Be6 {[%clk 0:00:06.7]}
34... c5 {[%clk 0:00:16]} 35. Rcd1 {[%clk 0:00:06.2]} 35... Ne7 {[%clk
0:00:12.2]} 36. h4 {[%clk 0:00:06.4]} 36... Nc6 {[%clk 0:00:12.1]} 37. h5 {[%clk
0:00:06.7]} 37... Na5 {[%clk 0:00:03.3]} 38. Bc3 {[%clk 0:00:05.1]} 38... Nc6
{[%clk 0:00:03.5]} 39. Bd7 {[%clk 0:00:04.7]} 39... Ne7 {[%clk 0:00:03.3]} 40.
Be6 {[%clk 0:00:04.4]} 40... a6 {[%clk 0:00:02.7]} 41. a4 {[%clk 0:00:04]} 41...
b5 {[%clk 0:00:02.5]} 42. axb5 {[%clk 0:00:04.9]} 42... axb5 {[%clk 0:00:03.4]}
43. Ba5 {[%clk 0:00:05.2]} 43... Rxd1 {[%clk 0:00:03.6]} 44. Rxd1 {[%clk
0:00:05.8]} 44... Re8 {[%clk 0:00:03.3]} 45. Bd7 {[%clk 0:00:04.8]} 45... Ra8
{[%clk 0:00:03]} 46. Bc3 {[%clk 0:00:03.9]} 46... Ra3 {[%clk 0:00:01.8]} 47.
Bxb5 {[%clk 0:00:03.1]} 47... Nf5 {[%clk 0:00:02]} 48. Bc4 {[%clk 0:00:02.3]}
48... Ra2 {[%clk 0:00:02.2]} 49. Ra1 {[%clk 0:00:02.8]} 49... Rc2 {[%clk
0:00:01.7]} 50. Ra8+ {[%clk 0:00:03.1]} 50... Ke7 {[%clk 0:00:01.8]} 51. Ra7+
{[%clk 0:00:04]} 51... Kd6 {[%clk 0:00:02.3]} 52. Kf3 {[%clk 0:00:04.1]} 52...
Rxc3+ {[%clk 0:00:02.2]} 53. Ke4 {[%clk 0:00:03.6]} 53... Nd4 {[%clk 0:00:02.1]}
54. Rxg7 {[%clk 0:00:03.6]} 54... Rf3 {[%clk 0:00:01.9]} 55. g4 {[%clk
0:00:03.4]} 55... Rxf2 {[%clk 0:00:02]} 56. Ke3 {[%clk 0:00:03.1]} 56... Rf3+
{[%clk 0:00:02.2]} 57. Ke4 {[%clk 0:00:03.8]} 57... Rf2 {[%clk 0:00:02.7]} 58.
Rg6 {[%clk 0:00:04.5]} 58... Nc6 {[%clk 0:00:01.9]} 59. Rxh6 {[%clk 0:00:04.6]}
59... Ne5 {[%clk 0:00:01.8]} 60. g5 {[%clk 0:00:05]} 60... Ng4 {[%clk
0:00:02.3]} 61. Rg6 {[%clk 0:00:05]} 61... Ke7 {[%clk 0:00:01.5]} 62. h6 {[%clk
0:00:05.1]} 62... fxg5 {[%clk 0:00:01.6]} 63. Rxg5 {[%clk 0:00:04.8]} 63... Nf6+
{[%clk 0:00:01.9]} 64. Ke5 {[%clk 0:00:04.9]} 64... Nd7+ {[%clk 0:00:02.1]} 65.
Kd5 {[%clk 0:00:04.9]} 65... Rh2 {[%clk 0:00:02.7]} 66. Rg7+ {[%clk 0:00:04.8]}
66... Kd8 {[%clk 0:00:03.1]} 67. Rg6 {[%clk 0:00:04.3]} 67... Rh5+ {[%clk
0:00:02.9]} 68. Kd6 {[%clk 0:00:04.6]} 68... Nf8 {[%clk 0:00:02.5]} 69. Rf6
{[%clk 0:00:04.2]} 69... Nh7 {[%clk 0:00:02.5]} 70. Re6 {[%clk 0:00:03.9]} 70...
Nf8 {[%clk 0:00:02.6]} 71. Rf6 {[%clk 0:00:03.8]} 71... Nh7 {[%clk 0:00:02.9]}
72. Rf7 {[%clk 0:00:02.4]} 72... Rxh6+ {[%clk 0:00:03]} 73. Be6 {[%clk
0:00:03.1]} 73... Rxe6+ {[%clk 0:00:02.5]} 74. Kxe6 {[%clk 0:00:03.2]} 74...
Ng5+ {[%clk 0:00:03.2]} 75. Kf6 {[%clk 0:00:03.2]} 75... Nxf7 {[%clk 0:00:03.8]}
76. Kxf7 {[%clk 0:00:04.1]} 76... Kd7 {[%clk 0:00:04.5]} 77. Kf6 {[%clk
0:00:04.5]} 77... Kd6 {[%clk 0:00:05]} 78. Kf7 {[%clk 0:00:04.4]} 78... Kd5
{[%clk 0:00:03.9]} 79. Ke7 {[%clk 0:00:05]} 79... Kd4 {[%clk 0:00:03.2]} 80. Kd6
{[%clk 0:00:05.4]} 80... Kc3 {[%clk 0:00:03.9]} 81. Kxc5 {[%clk 0:00:05.8]}
81... Kxb3 {[%clk 0:00:04.4]} 1/2-1/2

[Event "Late-Titled-Tuesday-Blitz-June-18-2024"]
[Site "Chess.com"]
[Date "2024.06.18"]
[Round "5"]
[White "NailBashirli"]
[Black "FuenfgegenWilly"]
[Result "1-0"]
[WhiteElo "2750"]
[BlackElo "2525"]
[TimeControl "180+1"]
[EndTime "14:59:42 PDT"]
[Termination "NailBashirli won by resignation"]

1. e4 {[%clk 0:03:00.9]} 1... c5 {[%clk 0:02:58.8]} 2. Nf3 {[%clk 0:02:58.8]}
2... a6 {[%clk 0:02:59]} 3. Nc3 {[%clk 0:02:21.3]} 3... b6 {[%clk 0:02:57]} 4.
d4 {[%clk 0:02:16.5]} 4... cxd4 {[%clk 0:02:57.9]} 5. Nxd4 {[%clk 0:02:16.1]}
5... Bb7 {[%clk 0:02:58.8]} 6. Bc4 {[%clk 0:02:15.1]} 6... e6 {[%clk 0:02:59.2]}
7. Be3 {[%clk 0:02:13.5]} 7... Qc7 {[%clk 0:02:57.8]} 8. Bb3 {[%clk 0:02:13.2]}
8... Bb4 {[%clk 0:02:56.5]} 9. Qd3 {[%clk 0:02:10]} 9... Nf6 {[%clk 0:02:41.9]}
10. f3 {[%clk 0:02:07.8]} 10... O-O {[%clk 0:02:35.7]} 11. O-O {[%clk
0:01:59.4]} 11... Nc6 {[%clk 0:02:28.7]} 12. Nxc6 {[%clk 0:01:53.8]} 12... Qxc6
{[%clk 0:02:27]} 13. Ne2 {[%clk 0:01:53.1]} 13... Bc5 {[%clk 0:02:03.7]} 14.
Rad1 {[%clk 0:01:48.5]} 14... a5 {[%clk 0:01:45]} 15. Nd4 {[%clk 0:01:42]} 15...
Qc7 {[%clk 0:01:40.6]} 16. Nb5 {[%clk 0:01:39.5]} 16... Qc6 {[%clk 0:01:38.6]}
17. a4 {[%clk 0:01:36.1]} 17... Rfd8 {[%clk 0:01:25.5]} 18. e5 {[%clk
0:01:31.1]} 18... Ne8 {[%clk 0:01:16.1]} 19. Bxc5 {[%clk 0:01:30.9]} 19... Qxc5+
{[%clk 0:01:04.2]} 20. Qd4 {[%clk 0:01:29.9]} 20... f6 {[%clk 0:00:40.2]} 21.
Qxc5 {[%clk 0:01:21.3]} 21... bxc5 {[%clk 0:00:40.3]} 22. f4 {[%clk 0:01:12.1]}
22... Bc6 {[%clk 0:00:37.5]} 23. f5 {[%clk 0:01:06.4]} 23... Kf7 {[%clk
0:00:28.2]} 24. Nd6+ {[%clk 0:00:51.6]} 24... Nxd6 {[%clk 0:00:28.2]} 25. Rxd6
{[%clk 0:00:52.5]} 25... Be4 {[%clk 0:00:07.8]} 26. exf6 {[%clk 0:00:39.6]}
26... gxf6 {[%clk 0:00:06]} 27. fxe6+ {[%clk 0:00:37.9]} 27... Ke7 {[%clk
0:00:05.8]} 28. Rxd7+ {[%clk 0:00:34.4]} 28... Rxd7 {[%clk 0:00:06]} 29. exd7
{[%clk 0:00:35.2]} 29... f5 {[%clk 0:00:06.9]} 30. Rd1 {[%clk 0:00:31.7]} 30...
Rd8 {[%clk 0:00:06.9]} 31. c3 {[%clk 0:00:30.1]} 31... Rxd7 {[%clk 0:00:06.3]}
32. Rxd7+ {[%clk 0:00:29.9]} 32... Kxd7 {[%clk 0:00:07.2]} 33. Kf2 {[%clk
0:00:29.7]} 33... f4 {[%clk 0:00:06.6]} 34. Bd1 {[%clk 0:00:26.1]} 34... Kd6
{[%clk 0:00:05.7]} 35. b3 {[%clk 0:00:23.7]} 35... Ke5 {[%clk 0:00:05.6]} 36.
Be2 {[%clk 0:00:22.6]} 36... h6 {[%clk 0:00:05.9]} 37. Bc4 {[%clk 0:00:22.3]}
37... Bc6 {[%clk 0:00:05.9]} 38. g3 {[%clk 0:00:21.4]} 38... fxg3+ {[%clk
0:00:06]} 39. Kxg3 {[%clk 0:00:18.7]} 39... Kf6 {[%clk 0:00:05.8]} 40. Kf4
{[%clk 0:00:18.8]} 40... Bb7 {[%clk 0:00:06]} 41. Bd3 {[%clk 0:00:16.7]} 41...
Bd5 {[%clk 0:00:06]} 42. Bc2 {[%clk 0:00:17.1]} 42... Bc6 {[%clk 0:00:06.3]} 43.
Ke3 {[%clk 0:00:16.4]} 43... Ke5 {[%clk 0:00:06.4]} 44. Bd3 {[%clk 0:00:15.7]}
44... Bd7 {[%clk 0:00:06.4]} 45. Bc4 {[%clk 0:00:15.4]} 45... Bf5 {[%clk
0:00:06.6]} 46. Kd2 {[%clk 0:00:15.3]} 46... Bg4 {[%clk 0:00:05.7]} 47. Ke3
{[%clk 0:00:15.4]} 47... Bd1 {[%clk 0:00:05.4]} 48. Kd2 {[%clk 0:00:14.9]} 48...
Bh5 {[%clk 0:00:05.3]} 49. Be2 {[%clk 0:00:15]} 49... Bf7 {[%clk 0:00:05.2]} 50.
Bd1 {[%clk 0:00:15.6]} 50... Be6 {[%clk 0:00:05.2]} 51. Ke3 {[%clk 0:00:16.1]}
51... Bf7 {[%clk 0:00:05.3]} 52. Bc2 {[%clk 0:00:16.3]} 52... Be6 {[%clk
0:00:05.8]} 53. c4 {[%clk 0:00:16.4]} 53... Bf7 {[%clk 0:00:06.3]} 54. Be4
{[%clk 0:00:16.5]} 54... Bh5 {[%clk 0:00:06.2]} 55. Bf3 {[%clk 0:00:16.1]} 55...
Bg6 {[%clk 0:00:06.2]} 56. Bd1 {[%clk 0:00:15.5]} 56... Bf5 {[%clk 0:00:06.4]}
57. h4 {[%clk 0:00:13.5]} 57... Bh7 {[%clk 0:00:06.1]} 58. Kd2 {[%clk
0:00:10.9]} 58... Kd4 {[%clk 0:00:06.6]} 59. Bc2 {[%clk 0:00:10.4]} 59... Bg8
{[%clk 0:00:05.8]} 60. Bf5 {[%clk 0:00:08.8]} 60... Bf7 {[%clk 0:00:05.9]} 61.
Bd7 {[%clk 0:00:09]} 61... Bh5 {[%clk 0:00:05.9]} 62. Bf5 {[%clk 0:00:09]} 62...
Bf3 {[%clk 0:00:05.9]} 63. Bd7 {[%clk 0:00:08.7]} 63... Ke4 {[%clk 0:00:06]} 64.
Bc6+ {[%clk 0:00:08.7]} 64... Kf4 {[%clk 0:00:05.9]} 65. Bxf3 {[%clk 0:00:09]}
65... Kxf3 {[%clk 0:00:06.8]} 66. Kd3 {[%clk 0:00:07.6]} 66... Kg4 {[%clk
0:00:05.3]} 67. Ke4 {[%clk 0:00:07.9]} 67... Kxh4 {[%clk 0:00:05.3]} 68. b4
{[%clk 0:00:08.6]} 68... cxb4 {[%clk 0:00:04.3]} 69. c5 {[%clk 0:00:09.1]} 69...
b3 {[%clk 0:00:03.5]} 70. Kd3 {[%clk 0:00:09.2]} 70... Kg3 {[%clk 0:00:02.4]}
71. c6 {[%clk 0:00:09.3]} 71... h5 {[%clk 0:00:03]} 72. c7 {[%clk 0:00:09.6]}
72... h4 {[%clk 0:00:03.9]} 73. c8=Q {[%clk 0:00:10.1]} 73... h3 {[%clk
0:00:04.5]} 74. Qg8+ {[%clk 0:00:10.4]} 74... Kh2 {[%clk 0:00:04.6]} 75. Qxb3
{[%clk 0:00:10]} 75... Kg1 {[%clk 0:00:04.5]} 76. Qd1+ {[%clk 0:00:10]} 76...
Kg2 {[%clk 0:00:04.7]} 77. Qe2+ {[%clk 0:00:10.7]} 77... Kg1 {[%clk 0:00:05.2]}
78. Qe1+ {[%clk 0:00:11.1]} 78... Kg2 {[%clk 0:00:05.7]} 79. Qe4+ {[%clk
0:00:11.2]} 79... Kg1 {[%clk 0:00:05.7]} 80. Qg4+ {[%clk 0:00:11.6]} 80... Kh2
{[%clk 0:00:05.4]} 81. Ke3 {[%clk 0:00:10.5]} 1-0

[Event "Late-Titled-Tuesday-Blitz-June-18-2024"]
[Site "Chess.com"]
[Date "2024.06.18"]
[Round "5"]
[White "familijatop71"]
[Black "AustinThomas12345"]
[Result "1-0"]
[WhiteElo "2310"]
[BlackElo "2461"]
[TimeControl "180+1"]
[EndTime "14:59:43 PDT"]
[Termination "familijatop71 won on time"]

1. e4 {[%clk 0:03:00.9]} 1... c5 {[%clk 0:02:56.3]} 2. c3 {[%clk 0:03:00.1]}
2... d5 {[%clk 0:02:54.9]} 3. exd5 {[%clk 0:02:59.4]} 3... Qxd5 {[%clk
0:02:55.8]} 4. Nf3 {[%clk 0:02:59.2]} 4... g6 {[%clk 0:02:54.9]} 5. Na3 {[%clk
0:02:57.8]} 5... Bg7 {[%clk 0:02:54.2]} 6. Bc4 {[%clk 0:02:58.1]} 6... Qe4+
{[%clk 0:02:54.5]} 7. Be2 {[%clk 0:02:58.1]} 7... Nf6 {[%clk 0:02:44.1]} 8. O-O
{[%clk 0:02:55.9]} 8... O-O {[%clk 0:02:43.2]} 9. Re1 {[%clk 0:02:55]} 9... Qc6
{[%clk 0:02:40.6]} 10. d4 {[%clk 0:02:48.5]} 10... cxd4 {[%clk 0:02:39.7]} 11.
Nxd4 {[%clk 0:02:46.1]} 11... Qb6 {[%clk 0:02:30.1]} 12. Nc4 {[%clk 0:02:37.5]}
12... Qc7 {[%clk 0:02:26.1]} 13. Qb3 {[%clk 0:02:08.2]} 13... Ng4 {[%clk
0:02:16.2]} 14. Nf3 {[%clk 0:01:31.4]} 14... Nc6 {[%clk 0:01:56.8]} 15. h3
{[%clk 0:01:29.7]} 15... Nf6 {[%clk 0:01:52.4]} 16. Be3 {[%clk 0:01:22.4]} 16...
Nd5 {[%clk 0:01:44.1]} 17. Bg5 {[%clk 0:01:01.7]} 17... h6 {[%clk 0:01:37.9]}
18. Bh4 {[%clk 0:01:01.6]} 18... Nf4 {[%clk 0:01:38.2]} 19. Bg3 {[%clk
0:00:57.8]} 19... Nxe2+ {[%clk 0:01:38.2]} 20. Rxe2 {[%clk 0:00:57.9]} 20... Qd7
{[%clk 0:01:21.1]} 21. Nce5 {[%clk 0:00:56]} 21... Qf5 {[%clk 0:01:16.4]} 22.
Nxc6 {[%clk 0:00:54.5]} 22... bxc6 {[%clk 0:01:17.3]} 23. Rxe7 {[%clk
0:00:48.8]} 23... Be6 {[%clk 0:01:12]} 24. Qa3 {[%clk 0:00:34.6]} 24... Rfd8
{[%clk 0:00:56.4]} 25. Rxa7 {[%clk 0:00:29.4]} 25... Rxa7 {[%clk 0:00:57.3]} 26.
Qxa7 {[%clk 0:00:29]} 26... Bd5 {[%clk 0:00:56.7]} 27. Nd4 {[%clk 0:00:15.5]}
27... Qe4 {[%clk 0:00:54.1]} 28. f3 {[%clk 0:00:16.1]} 28... Qd3 {[%clk
0:00:42.9]} 29. Re1 {[%clk 0:00:14]} 29... Qd2 {[%clk 0:00:36.9]} 30. Qb6 {[%clk
0:00:13.4]} 30... Ra8 {[%clk 0:00:29.7]} 31. a3 {[%clk 0:00:12.2]} 31... Rc8
{[%clk 0:00:28]} 32. Qb7 {[%clk 0:00:12]} 32... Rd8 {[%clk 0:00:17.8]} 33. Qe7
{[%clk 0:00:11.9]} 33... Rb8 {[%clk 0:00:14.8]} 34. Qe3 {[%clk 0:00:11.6]} 34...
Qxe3+ {[%clk 0:00:14.7]} 35. Rxe3 {[%clk 0:00:11.5]} 35... Rxb2 {[%clk
0:00:15.6]} 36. Re8+ {[%clk 0:00:11.3]} 36... Kh7 {[%clk 0:00:15.8]} 37. Rc8
{[%clk 0:00:10.3]} 37... Rxg2+ {[%clk 0:00:13]} 38. Kxg2 {[%clk 0:00:09.6]}
38... h5 {[%clk 0:00:11.8]} 39. Nxc6 {[%clk 0:00:09.2]} 39... Be6 {[%clk
0:00:12.6]} 40. Rc7 {[%clk 0:00:08.2]} 40... Bf8 {[%clk 0:00:12.6]} 41. Ne5
{[%clk 0:00:07.6]} 41... Bd6 {[%clk 0:00:12.6]} 42. Rc6 {[%clk 0:00:06.6]} 42...
Bxa3 {[%clk 0:00:11.9]} 43. Ra6 {[%clk 0:00:04.9]} 43... Bc1 {[%clk 0:00:11.5]}
44. c4 {[%clk 0:00:04.9]} 44... Bc8 {[%clk 0:00:11.4]} 45. Ra7 {[%clk
0:00:04.8]} 45... Be6 {[%clk 0:00:08.5]} 46. Nxf7 {[%clk 0:00:04.7]} 46... Kg8
{[%clk 0:00:04.9]} 47. Ng5 {[%clk 0:00:04.4]} 47... Bxg5 {[%clk 0:00:04.6]} 48.
c5 {[%clk 0:00:03.4]} 48... Be3 {[%clk 0:00:05.3]} 49. Ra8+ {[%clk 0:00:02.9]}
49... Kf7 {[%clk 0:00:05.5]} 50. Bf2 {[%clk 0:00:03.4]} 50... Bf4 {[%clk
0:00:05.5]} 51. c6 {[%clk 0:00:03.7]} 51... Bd5 {[%clk 0:00:06.1]} 52. Ra7+
{[%clk 0:00:03.3]} 52... Ke8 {[%clk 0:00:06.3]} 53. c7 {[%clk 0:00:03.8]} 53...
Kd7 {[%clk 0:00:06.8]} 54. Bg3 {[%clk 0:00:03.8]} 54... Bg5 {[%clk 0:00:04.1]}
55. Ra5 {[%clk 0:00:02.9]} 55... Be6 {[%clk 0:00:04.5]} 56. Rxg5 {[%clk
0:00:02.9]} 56... Bf5 {[%clk 0:00:04.5]} 57. f4 {[%clk 0:00:03.2]} 57... Be6
{[%clk 0:00:04.7]} 58. Rxg6 {[%clk 0:00:03.4]} 58... Bd5+ {[%clk 0:00:05.5]} 59.
Kf2 {[%clk 0:00:03.4]} 59... Bb7 {[%clk 0:00:06]} 60. Ke3 {[%clk 0:00:03.9]}
60... Bc8 {[%clk 0:00:06]} 61. f5 {[%clk 0:00:04.2]} 61... Ke7 {[%clk
0:00:06.5]} 62. Rh6 {[%clk 0:00:04.6]} 62... Kf7 {[%clk 0:00:07.4]} 63. Rh8
{[%clk 0:00:04.9]} 63... Bd7 {[%clk 0:00:08.3]} 64. c8=Q {[%clk 0:00:05]} 64...
Bxc8 {[%clk 0:00:09]} 65. Rxc8 {[%clk 0:00:05.3]} 65... h4 {[%clk 0:00:09.9]}
66. Bxh4 {[%clk 0:00:04.5]} 66... Kg7 {[%clk 0:00:10.4]} 67. Kf4 {[%clk
0:00:05.4]} 67... Kf7 {[%clk 0:00:11.2]} 68. Bg3 {[%clk 0:00:05.9]} 68... Ke7
{[%clk 0:00:12.1]} 69. h4 {[%clk 0:00:06.8]} 69... Kf7 {[%clk 0:00:13]} 70. h5
{[%clk 0:00:07.3]} 70... Kg7 {[%clk 0:00:13.9]} 71. Rc1 {[%clk 0:00:07.2]} 71...
Kh7 {[%clk 0:00:14.8]} 72. Rh1 {[%clk 0:00:07.7]} 72... Kh6 {[%clk 0:00:15.7]}
73. Bh4 {[%clk 0:00:07.4]} 73... Kg7 {[%clk 0:00:16.6]} 74. Bg5 {[%clk
0:00:07.9]} 74... Kh7 {[%clk 0:00:17.5]} 75. h6 {[%clk 0:00:08.4]} 75... Kh8
{[%clk 0:00:18.2]} 76. Rc1 {[%clk 0:00:08.7]} 76... Kh7 {[%clk 0:00:19.1]} 77.
Ke5 {[%clk 0:00:08.8]} 77... Kg8 {[%clk 0:00:19.6]} 78. Kf6 {[%clk 0:00:09]}
78... Kh7 {[%clk 0:00:20.5]} 79. Rc7+ {[%clk 0:00:08.7]} 79... Kh8 {[%clk
0:00:21.2]} 80. Kg6 {[%clk 0:00:07.8]} 1-0